[Event "Late-Titled-Tuesday-Blitz-May-28-2024"]
[Site "Chess.com"]
[Date "2024.05.28"]
[Round "2"]
[White "Sanyura"]
[Black "AryanTari"]
[Result "1-0"]
[WhiteElo "2622"]
[BlackElo "3015"]
[TimeControl "180+1"]
[EndTime "14:20:11 PDT"]
[Termination "Sanyura won on time"]

1. e4 {[%clk 0:02:05.5]} 1... e5 {[%clk 0:02:58.7]} 2. Bc4 {[%clk 0:02:03.9]}
2... Nf6 {[%clk 0:02:58.2]} 3. Nc3 {[%clk 0:02:04.4]} 3... Bc5 {[%clk
0:02:54.8]} 4. d3 {[%clk 0:02:03.6]} 4... c6 {[%clk 0:02:54.7]} 5. Nf3 {[%clk
0:01:55.4]} 5... d6 {[%clk 0:02:54.2]} 6. O-O {[%clk 0:01:52.3]} 6... O-O {[%clk
0:02:53.7]} 7. Ne2 {[%clk 0:01:36]} 7... a5 {[%clk 0:02:52.3]} 8. a4 {[%clk
0:01:33.6]} 8... Re8 {[%clk 0:02:46.6]} 9. Ng3 {[%clk 0:01:31.4]} 9... h6 {[%clk
0:02:43]} 10. Kh1 {[%clk 0:01:28.4]} 10... d5 {[%clk 0:02:36.4]} 11. Bb3 {[%clk
0:01:17.3]} 11... Bd6 {[%clk 0:02:28.2]} 12. Nh4 {[%clk 0:01:11.5]} 12... Bg4
{[%clk 0:02:06.2]} 13. f3 {[%clk 0:01:09.4]} 13... Be6 {[%clk 0:02:06.1]} 14.
Nhf5 {[%clk 0:01:09.2]} 14... Bf8 {[%clk 0:02:05.1]} 15. f4 {[%clk 0:01:02.7]}
15... Nbd7 {[%clk 0:01:46.1]} 16. Nxh6+ {[%clk 0:00:58.5]} 16... gxh6 {[%clk
0:01:45]} 17. f5 {[%clk 0:00:59.1]} 17... Bg7 {[%clk 0:01:35.8]} 18. fxe6 {[%clk
0:00:59]} 18... fxe6 {[%clk 0:01:36.7]} 19. Nh5 {[%clk 0:00:47.6]} 19... Qe7
{[%clk 0:01:01.2]} 20. Be3 {[%clk 0:00:44.9]} 20... Kh7 {[%clk 0:00:53.4]} 21.
Qf3 {[%clk 0:00:44.4]} 21... Rg8 {[%clk 0:00:48.9]} 22. Qh3 {[%clk 0:00:44]}
22... Nxh5 {[%clk 0:00:46.9]} 23. Qxh5 {[%clk 0:00:43.8]} 23... Raf8 {[%clk
0:00:47.4]} 24. c3 {[%clk 0:00:39.5]} 24... Rxf1+ {[%clk 0:00:39.2]} 25. Rxf1
{[%clk 0:00:39.1]} 25... Rf8 {[%clk 0:00:40.1]} 26. Rxf8 {[%clk 0:00:21.2]}
26... Qxf8 {[%clk 0:00:41]} 27. Kg1 {[%clk 0:00:21.6]} 27... Qe7 {[%clk
0:00:31.1]} 28. Bc2 {[%clk 0:00:15.9]} 28... d4 {[%clk 0:00:19.5]} 29. Bf2
{[%clk 0:00:03.9]} 29... dxc3 {[%clk 0:00:19.9]} 30. bxc3 {[%clk 0:00:04.4]}
30... Qa3 {[%clk 0:00:20.3]} 31. h3 {[%clk 0:00:03.8]} 31... Qxc3 {[%clk
0:00:19.5]} 32. Bd1 {[%clk 0:00:03.8]} 32... Nf6 {[%clk 0:00:15.8]} 33. Qf3
{[%clk 0:00:03.7]} 33... b5 {[%clk 0:00:13.4]} 34. Bh4 {[%clk 0:00:03.7]} 34...
Nd7 {[%clk 0:00:09.3]} 35. Qg4 {[%clk 0:00:04]} 35... Qc1 {[%clk 0:00:05.6]} 36.
Kh2 {[%clk 0:00:03.5]} 36... Qf4+ {[%clk 0:00:05.6]} 37. Bg3 {[%clk 0:00:01]}
37... Qxg4 {[%clk 0:00:05.9]} 38. Bxg4 {[%clk 0:00:01.9]} 38... Nc5 {[%clk
0:00:06.2]} 39. Bf2 {[%clk 0:00:01]} 39... Nxd3 {[%clk 0:00:04.1]} 40. Be3
{[%clk 0:00:01]} 40... bxa4 {[%clk 0:00:03.3]} 41. Bxe6 {[%clk 0:00:01.6]} 41...
a3 {[%clk 0:00:03.8]} 42. Bc4 {[%clk 0:00:01.5]} 42... Nb4 {[%clk 0:00:03.1]}
43. Bc1 {[%clk 0:00:01]} 43... a2 {[%clk 0:00:02.6]} 44. Bb2 {[%clk 0:00:01.6]}
44... a4 {[%clk 0:00:02.3]} 45. Kg3 {[%clk 0:00:01.9]} 45... a3 {[%clk
0:00:02.4]} 46. Bc3 {[%clk 0:00:02.6]} 46... c5 {[%clk 0:00:00.9]} 47. Kf3
{[%clk 0:00:02.6]} 47... Kg6 {[%clk 0:00:01.4]} 48. g4 {[%clk 0:00:03.1]} 48...
Bf6 {[%clk 0:00:01.8]} 49. Kg3 {[%clk 0:00:03.2]} 49... Kg7 {[%clk 0:00:02.5]}
50. h4 {[%clk 0:00:03.7]} 50... Kf8 {[%clk 0:00:03.1]} 51. g5 {[%clk 0:00:04.2]}
51... hxg5 {[%clk 0:00:04]} 52. hxg5 {[%clk 0:00:05.1]} 52... Bg7 {[%clk
0:00:03.8]} 53. Kf3 {[%clk 0:00:06]} 53... Ke7 {[%clk 0:00:04.3]} 54. Ke2 {[%clk
0:00:06.6]} 54... Kd6 {[%clk 0:00:04.3]} 55. Kd2 {[%clk 0:00:07]} 55... Bf8
{[%clk 0:00:03.9]} 56. Ke3 {[%clk 0:00:06.6]} 56... Be7 {[%clk 0:00:04.5]} 57.
g6 {[%clk 0:00:06.2]} 57... Bg5+ {[%clk 0:00:05]} 58. Kf3 {[%clk 0:00:06.5]}
58... Bh6 {[%clk 0:00:05.9]} 59. Kg4 {[%clk 0:00:06.9]} 59... Nc2 {[%clk
0:00:05.9]} 60. Bxa2 {[%clk 0:00:06.1]} 60... Ne3+ {[%clk 0:00:06.6]} 61. Kh5
{[%clk 0:00:06.1]} 61... Bg7 {[%clk 0:00:07.3]} 62. Kg5 {[%clk 0:00:06.1]} 62...
Nd1 {[%clk 0:00:07.4]} 63. Ba1 {[%clk 0:00:05.5]} 63... Ne3 {[%clk 0:00:07.6]}
64. Bc3 {[%clk 0:00:05.2]} 64... Nc2 {[%clk 0:00:07.7]} 65. Kf5 {[%clk
0:00:04.4]} 65... Nd4+ {[%clk 0:00:07.7]} 66. Kg5 {[%clk 0:00:03.6]} 66... Ne2
{[%clk 0:00:08]} 67. Ba1 {[%clk 0:00:03.4]} 67... Nc1 {[%clk 0:00:08.3]} 68. Bc4
{[%clk 0:00:03.6]} 68... Ke7 {[%clk 0:00:08.3]} 69. Kf5 {[%clk 0:00:03.6]} 69...
Kd6 {[%clk 0:00:09]} 70. Kg5 {[%clk 0:00:03.9]} 70... a2 {[%clk 0:00:09.4]} 71.
Kf5 {[%clk 0:00:03.6]} 71... Ke7 {[%clk 0:00:08.2]} 72. Bb2 {[%clk 0:00:04.1]}
72... Nd3 {[%clk 0:00:06.8]} 73. Bxd3 {[%clk 0:00:03.1]} 73... Kd6 {[%clk
0:00:07.4]} 74. Bc4 {[%clk 0:00:03.5]} 74... Bh8 {[%clk 0:00:07.9]} 75. Bxa2
{[%clk 0:00:03.7]} 75... Bg7 {[%clk 0:00:08.8]} 76. Bc4 {[%clk 0:00:04.2]} 76...
Bh8 {[%clk 0:00:09.7]} 77. Kg5 {[%clk 0:00:04.4]} 77... Bg7 {[%clk 0:00:10.6]}
78. Bc3 {[%clk 0:00:04.7]} 78... Bh8 {[%clk 0:00:11]} 79. Kh6 {[%clk 0:00:05]}
79... Bg7+ {[%clk 0:00:11.9]} 80. Kxg7 {[%clk 0:00:05.2]} 1-0

[Event "Late-Titled-Tuesday-Blitz-May-28-2024"]
[Site "Chess.com"]
[Date "2024.05.28"]
[Round "2"]
[White "tusplingher"]
[Black "H3nriqueTV"]
[Result "1/2-1/2"]
[WhiteElo "2560"]
[BlackElo "2364"]
[TimeControl "180+1"]
[EndTime "14:20:14 PDT"]
[Termination "Game drawn - insufficient material"]

1. c4 {[%clk 0:03:00.9]} 1... Nf6 {[%clk 0:02:58]} 2. g3 {[%clk 0:03:00.7]} 2...
c5 {[%clk 0:02:58.2]} 3. Bg2 {[%clk 0:03:00.7]} 3... Nc6 {[%clk 0:02:59.1]} 4.
Nc3 {[%clk 0:03:01.1]} 4... g6 {[%clk 0:02:59.7]} 5. Nf3 {[%clk 0:03:01.5]} 5...
Bg7 {[%clk 0:03:00.3]} 6. d4 {[%clk 0:03:02]} 6... O-O {[%clk 0:03:01]} 7. d5
{[%clk 0:02:58.5]} 7... Nb8 {[%clk 0:03:01.1]} 8. O-O {[%clk 0:02:58.2]} 8... d6
{[%clk 0:03:01.6]} 9. h3 {[%clk 0:02:53.5]} 9... Bd7 {[%clk 0:03:00.3]} 10. e4
{[%clk 0:02:53.2]} 10... a6 {[%clk 0:03:00.6]} 11. a4 {[%clk 0:02:52.1]} 11...
e5 {[%clk 0:02:51.6]} 12. dxe6 {[%clk 0:02:49.4]} 12... Bxe6 {[%clk 0:02:51.5]}
13. Qd3 {[%clk 0:02:44.1]} 13... Nc6 {[%clk 0:02:50.1]} 14. Bf4 {[%clk
0:02:39.6]} 14... Nb4 {[%clk 0:02:40]} 15. Qxd6 {[%clk 0:02:39.6]} 15... Bxc4
{[%clk 0:02:33.4]} 16. Rfd1 {[%clk 0:02:38.4]} 16... Nd3 {[%clk 0:02:23.5]} 17.
Bf1 {[%clk 0:02:16.4]} 17... Nxb2 {[%clk 0:02:06]} 18. Qxc5 {[%clk 0:02:02.3]}
18... Nxd1 {[%clk 0:02:04]} 19. Rxd1 {[%clk 0:01:58.8]} 19... Qc8 {[%clk
0:01:59.1]} 20. Qxc4 {[%clk 0:01:56.3]} 20... Qxc4 {[%clk 0:01:56.8]} 21. Bxc4
{[%clk 0:01:57.2]} 21... Rac8 {[%clk 0:01:56.6]} 22. Rd4 {[%clk 0:01:50.7]}
22... Nxe4 {[%clk 0:01:48.5]} 23. Rxe4 {[%clk 0:01:47.4]} 23... Bxc3 {[%clk
0:01:48.4]} 24. Ng5 {[%clk 0:01:46]} 24... h6 {[%clk 0:01:41.4]} 25. Nf3 {[%clk
0:01:20.1]} 25... Kg7 {[%clk 0:01:32.5]} 26. Kg2 {[%clk 0:01:19.5]} 26... f5
{[%clk 0:01:26.3]} 27. Re7+ {[%clk 0:01:09.8]} 27... Kf6 {[%clk 0:01:25]} 28.
Re6+ {[%clk 0:01:09.6]} 28... Kf7 {[%clk 0:01:21.1]} 29. Rc6+ {[%clk 0:01:01.1]}
29... Kg7 {[%clk 0:01:18.9]} 30. Rxc8 {[%clk 0:00:56]} 30... Rxc8 {[%clk
0:01:19]} 31. Bd5 {[%clk 0:00:53.5]} 31... b5 {[%clk 0:01:18.8]} 32. Bb7 {[%clk
0:00:50.6]} 32... Rd8 {[%clk 0:01:12.8]} 33. axb5 {[%clk 0:00:35.7]} 33... axb5
{[%clk 0:01:13.7]} 34. Ba6 {[%clk 0:00:30.7]} 34... b4 {[%clk 0:01:01]} 35. Bc4
{[%clk 0:00:30]} 35... Bf6 {[%clk 0:01:01.5]} 36. Bd2 {[%clk 0:00:25.2]} 36...
Bc3 {[%clk 0:00:53.1]} 37. Be3 {[%clk 0:00:23.4]} 37... Rc8 {[%clk 0:00:51.4]}
38. Bb3 {[%clk 0:00:22.8]} 38... Bf6 {[%clk 0:00:51.6]} 39. Bd2 {[%clk
0:00:15.6]} 39... Bc3 {[%clk 0:00:50.7]} 40. Bxc3+ {[%clk 0:00:14.3]} 40... Rxc3
{[%clk 0:00:43.5]} 41. Bd5 {[%clk 0:00:02.4]} 41... b3 {[%clk 0:00:42.1]} 42.
Nd2 {[%clk 0:00:02.7]} 42... b2 {[%clk 0:00:41.4]} 43. Ba2 {[%clk 0:00:02.6]}
43... Rc2 {[%clk 0:00:36.9]} 44. Nb1 {[%clk 0:00:02.9]} 44... Kf6 {[%clk
0:00:36.8]} 45. Kf3 {[%clk 0:00:03.2]} 45... Ke5 {[%clk 0:00:36.7]} 46. Ke3
{[%clk 0:00:03.9]} 46... g5 {[%clk 0:00:36.4]} 47. f4+ {[%clk 0:00:04]} 47...
Kd6 {[%clk 0:00:35.5]} 48. fxg5 {[%clk 0:00:04]} 48... hxg5 {[%clk 0:00:35.8]}
49. h4 {[%clk 0:00:04.7]} 49... gxh4 {[%clk 0:00:36.2]} 50. gxh4 {[%clk
0:00:05.1]} 50... Rh2 {[%clk 0:00:36.9]} 51. Kf4 {[%clk 0:00:04.8]} 51... Rxh4+
{[%clk 0:00:34.9]} 52. Kxf5 {[%clk 0:00:05.4]} 52... Ra4 {[%clk 0:00:35.2]} 53.
Bb3 {[%clk 0:00:05.5]} 53... Ra1 {[%clk 0:00:35.4]} 54. Bc2 {[%clk 0:00:05.6]}
54... Kd5 {[%clk 0:00:34.5]} 55. Kf4 {[%clk 0:00:05.3]} 55... Kd4 {[%clk
0:00:35.1]} 56. Kf3 {[%clk 0:00:05.3]} 56... Ra7 {[%clk 0:00:28]} 57. Ke2 {[%clk
0:00:05]} 57... Rg7 {[%clk 0:00:26.7]} 58. Kf3 {[%clk 0:00:04.9]} 58... Re7
{[%clk 0:00:26.4]} 59. Bg6 {[%clk 0:00:04.2]} 59... Re1 {[%clk 0:00:26.1]} 60.
Bc2 {[%clk 0:00:03.7]} 60... Rc1 {[%clk 0:00:25.3]} 61. Bg6 {[%clk 0:00:03.9]}
61... Kc4 {[%clk 0:00:24.3]} 62. Ke2 {[%clk 0:00:02.9]} 62... Kb3 {[%clk
0:00:24.2]} 63. Nd2+ {[%clk 0:00:02.9]} 63... Ka3 {[%clk 0:00:21.7]} 64. Bb1
{[%clk 0:00:03]} 64... Rh1 {[%clk 0:00:19.9]} 65. Kd3 {[%clk 0:00:03.4]} 65...
Rh3+ {[%clk 0:00:19.4]} 66. Kc2 {[%clk 0:00:03.8]} 66... Rh2 {[%clk 0:00:19.4]}
67. Kc3 {[%clk 0:00:04.1]} 67... Rh3+ {[%clk 0:00:19.7]} 68. Kc2 {[%clk
0:00:03.3]} 68... Rh1 {[%clk 0:00:19.8]} 69. Nc4+ {[%clk 0:00:03.2]} 69... Kb4
{[%clk 0:00:20.2]} 70. Nxb2 {[%clk 0:00:04]} 70... Rh2+ {[%clk 0:00:20.8]} 71.
Kc1 {[%clk 0:00:04.5]} 71... Kc3 {[%clk 0:00:19.8]} 72. Nd1+ {[%clk 0:00:04.7]}
72... Kb3 {[%clk 0:00:19.8]} 73. Bd3 {[%clk 0:00:04.9]} 73... Rh1 {[%clk
0:00:19]} 74. Bb1 {[%clk 0:00:05.1]} 74... Rh6 {[%clk 0:00:17.6]} 75. Bc2+
{[%clk 0:00:05.4]} 75... Kc4 {[%clk 0:00:16.8]} 76. Kd2 {[%clk 0:00:06.3]} 76...
Kd4 {[%clk 0:00:17.2]} 77. Kc1 {[%clk 0:00:05.1]} 77... Rh2 {[%clk 0:00:17.5]}
78. Kb2 {[%clk 0:00:05.1]} 78... Rd2 {[%clk 0:00:17.1]} 79. Nc3 {[%clk
0:00:05.4]} 79... Rh2 {[%clk 0:00:18]} 80. Nb5+ {[%clk 0:00:05.6]} 80... Kc4
{[%clk 0:00:17.9]} 81. Nd6+ {[%clk 0:00:05.8]} 81... Kb4 {[%clk 0:00:17.8]} 82.
Ne4 {[%clk 0:00:05.8]} 82... Rh8 {[%clk 0:00:17.4]} 83. Nf6 {[%clk 0:00:05.9]}
83... Rb8 {[%clk 0:00:15.7]} 84. Kc1 {[%clk 0:00:04.6]} 84... Kc4 {[%clk
0:00:13.4]} 85. Ne4 {[%clk 0:00:04.4]} 85... Kd4 {[%clk 0:00:13.5]} 86. Kd2
{[%clk 0:00:04.4]} 86... Rb2 {[%clk 0:00:11.8]} 87. Nf2 {[%clk 0:00:04.3]} 87...
Rxc2+ {[%clk 0:00:09]} 88. Kxc2 {[%clk 0:00:04.3]} 1/2-1/2

[Event "Late-Titled-Tuesday-Blitz-May-28-2024"]
[Site "Chess.com"]
[Date "2024.05.28"]
[Round "2"]
[White "NajdorfPlayerc5"]
[Black "OIAM03"]
[Result "1/2-1/2"]
[WhiteElo "2445"]
[BlackElo "2040"]
[TimeControl "180+1"]
[EndTime "14:20:18 PDT"]
[Termination "Game drawn - insufficient material"]

1. d4 {[%clk 0:03:00.9]} 1... Nf6 {[%clk 0:02:58.5]} 2. Bf4 {[%clk 0:03:00.1]}
2... g6 {[%clk 0:02:58.2]} 3. e3 {[%clk 0:02:58.7]} 3... Bg7 {[%clk 0:02:58.1]}
4. Nc3 {[%clk 0:02:55.7]} 4... O-O {[%clk 0:02:54.6]} 5. h4 {[%clk 0:02:54.3]}
5... h5 {[%clk 0:02:53.7]} 6. Nf3 {[%clk 0:02:52.7]} 6... d6 {[%clk 0:02:53.6]}
7. Be2 {[%clk 0:02:49.4]} 7... c5 {[%clk 0:02:50.9]} 8. Qd2 {[%clk 0:02:48.5]}
8... Nc6 {[%clk 0:02:47.1]} 9. O-O-O {[%clk 0:02:42.9]} 9... a6 {[%clk
0:02:38.4]} 10. dxc5 {[%clk 0:02:40.1]} 10... dxc5 {[%clk 0:02:37.7]} 11. Qxd8
{[%clk 0:02:41]} 11... Rxd8 {[%clk 0:02:37.6]} 12. Rxd8+ {[%clk 0:02:35.8]}
12... Nxd8 {[%clk 0:02:37.8]} 13. Rd1 {[%clk 0:02:35.9]} 13... Ne6 {[%clk
0:02:37.8]} 14. Bg3 {[%clk 0:02:13.6]} 14... b5 {[%clk 0:02:37.2]} 15. Nd5
{[%clk 0:02:07.9]} 15... Nxd5 {[%clk 0:02:36.3]} 16. Rxd5 {[%clk 0:02:08.8]}
16... c4 {[%clk 0:02:22.3]} 17. c3 {[%clk 0:01:56.3]} 17... Bf6 {[%clk
0:02:08.2]} 18. Bf1 {[%clk 0:00:59.3]} 18... Bb7 {[%clk 0:02:08]} 19. Rd7 {[%clk
0:00:58.6]} 19... Bc6 {[%clk 0:02:07.1]} 20. Rd1 {[%clk 0:00:51.3]} 20... Nc5
{[%clk 0:02:05.1]} 21. Ne5 {[%clk 0:00:28.3]} 21... Be4 {[%clk 0:01:50.8]} 22.
Nd7 {[%clk 0:00:21.5]} 22... Nxd7 {[%clk 0:01:22.6]} 23. Rxd7 {[%clk 0:00:22.4]}
23... Bf5 {[%clk 0:01:18.3]} 24. Rd1 {[%clk 0:00:21.4]} 24... a5 {[%clk
0:01:11.1]} 25. Rd5 {[%clk 0:00:14.8]} 25... b4 {[%clk 0:01:00]} 26. Bxc4 {[%clk
0:00:13.4]} 26... bxc3 {[%clk 0:00:59]} 27. bxc3 {[%clk 0:00:06]} 27... Rc8
{[%clk 0:00:58.3]} 28. Bb3 {[%clk 0:00:06.4]} 28... Rxc3+ {[%clk 0:00:55.8]} 29.
Kd2 {[%clk 0:00:06.4]} 29... a4 {[%clk 0:00:49.6]} 30. Bxa4 {[%clk 0:00:03.9]}
30... Ra3 {[%clk 0:00:49.4]} 31. Bb3 {[%clk 0:00:04.2]} 31... Kg7 {[%clk
0:00:44.7]} 32. Rb5 {[%clk 0:00:02.8]} 32... Bd7 {[%clk 0:00:40.4]} 33. Rb7
{[%clk 0:00:02.5]} 33... Bc6 {[%clk 0:00:39.4]} 34. Rb6 {[%clk 0:00:02.9]} 34...
Bxg2 {[%clk 0:00:39.3]} 35. Ke2 {[%clk 0:00:02.2]} 35... Be4 {[%clk 0:00:37.5]}
36. Rb4 {[%clk 0:00:02.2]} 36... Bb1 {[%clk 0:00:37.6]} 37. Ra4 {[%clk
0:00:02.2]} 37... Rxa4 {[%clk 0:00:36.3]} 38. Bxa4 {[%clk 0:00:03.1]} 38... Bxa2
{[%clk 0:00:36.5]} 39. f3 {[%clk 0:00:02.1]} 39... Bc4+ {[%clk 0:00:36.2]} 40.
Kf2 {[%clk 0:00:02.6]} 40... Bc3 {[%clk 0:00:33.7]} 41. Bd1 {[%clk 0:00:02.8]}
41... Kf6 {[%clk 0:00:33.2]} 42. Bc2 {[%clk 0:00:03.3]} 42... e6 {[%clk
0:00:26.9]} 43. Bd1 {[%clk 0:00:03.7]} 43... Be5 {[%clk 0:00:25.3]} 44. Bxe5+
{[%clk 0:00:02.3]} 44... Kxe5 {[%clk 0:00:25.4]} 45. Kg3 {[%clk 0:00:02.7]}
45... Bd3 {[%clk 0:00:23.4]} 46. Ba4 {[%clk 0:00:02.9]} 46... f6 {[%clk
0:00:21.7]} 47. Be8 {[%clk 0:00:02.9]} 47... Kd5 {[%clk 0:00:20.7]} 48. Ba4
{[%clk 0:00:02.8]} 48... Kc4 {[%clk 0:00:20.3]} 49. e4 {[%clk 0:00:02.1]} 49...
Kd4 {[%clk 0:00:19.2]} 50. Be8 {[%clk 0:00:02.4]} 50... f5 {[%clk 0:00:19]} 51.
Bxg6 {[%clk 0:00:01.9]} 51... fxe4 {[%clk 0:00:18.4]} 52. fxe4 {[%clk
0:00:02.8]} 52... Bxe4 {[%clk 0:00:18]} 53. Bxh5 {[%clk 0:00:03.5]} 53... Bf5
{[%clk 0:00:16.5]} 54. Bd1 {[%clk 0:00:02.7]} 54... Ke3 {[%clk 0:00:16.6]} 55.
h5 {[%clk 0:00:02.5]} 55... Bh7 {[%clk 0:00:15.8]} 56. h6 {[%clk 0:00:02.1]}
56... e5 {[%clk 0:00:14.8]} 57. Kh4 {[%clk 0:00:02.1]} 57... Kf4 {[%clk
0:00:14.4]} 58. Kh5 {[%clk 0:00:01.7]} 58... Bf5 {[%clk 0:00:05.6]} 59. Be2
{[%clk 0:00:01.3]} 59... Bh7 {[%clk 0:00:04.8]} 60. Kh4 {[%clk 0:00:01.4]} 60...
Bf5 {[%clk 0:00:03.5]} 61. Bd1 {[%clk 0:00:01.1]} 61... Bh7 {[%clk 0:00:03.4]}
62. Kh3 {[%clk 0:00:01.6]} 62... Bf5+ {[%clk 0:00:03.5]} 63. Kg2 {[%clk
0:00:01.8]} 63... Bh7 {[%clk 0:00:03.3]} 64. Kf2 {[%clk 0:00:02.1]} 64... Kg5
{[%clk 0:00:03.3]} 65. Be2 {[%clk 0:00:02]} 65... Kxh6 {[%clk 0:00:03.4]} 66.
Ke3 {[%clk 0:00:02.9]} 66... Kg5 {[%clk 0:00:03.4]} 67. Bf3 {[%clk 0:00:03.1]}
67... Bf5 {[%clk 0:00:03.1]} 68. Bg2 {[%clk 0:00:03.2]} 68... Bg6 {[%clk
0:00:02.6]} 69. Bf1 {[%clk 0:00:03.7]} 69... Bf5 {[%clk 0:00:02.8]} 70. Ba6
{[%clk 0:00:03.8]} 70... Bg6 {[%clk 0:00:02.4]} 71. Bc8 {[%clk 0:00:04]} 71...
Bf5 {[%clk 0:00:01.8]} 72. Bb7 {[%clk 0:00:04.2]} 72... Be6 {[%clk 0:00:01.6]}
73. Bc6 {[%clk 0:00:04]} 73... Kf6 {[%clk 0:00:01.6]} 74. Be4 {[%clk 0:00:03.8]}
74... Kg5 {[%clk 0:00:01.7]} 75. Bf3 {[%clk 0:00:03.7]} 75... Kf6 {[%clk
0:00:01.9]} 76. Bg2 {[%clk 0:00:03.8]} 76... Kg5 {[%clk 0:00:02.4]} 77. Bb7
{[%clk 0:00:02.9]} 77... Kf6 {[%clk 0:00:02.7]} 78. Ke4 {[%clk 0:00:03.3]} 78...
Kg5 {[%clk 0:00:02.6]} 79. Kxe5 {[%clk 0:00:03.3]} 1/2-1/2

[Event "Late-Titled-Tuesday-Blitz-May-28-2024"]
[Site "Chess.com"]
[Date "2024.05.28"]
[Round "3"]
[White "FlemingA"]
[Black "nabukatnezarr"]
[Result "0-1"]
[WhiteElo "2475"]
[BlackElo "2662"]
[TimeControl "180+1"]
[EndTime "14:23:51 PDT"]
[Termination "nabukatnezarr won by resignation"]

1. f4 {[%clk 0:03:00.9]} 1... e5 {[%clk 0:02:57.7]} 2. fxe5 {[%clk 0:03:00.8]}
2... d6 {[%clk 0:02:57.9]} 3. Nf3 {[%clk 0:03:00.7]} 3... Nc6 {[%clk 0:02:56.9]}
4. e4 {[%clk 0:02:59.3]} 4... Nxe5 {[%clk 0:02:54.6]} 5. d4 {[%clk 0:02:57.7]}
5... Nxf3+ {[%clk 0:02:54]} 6. Qxf3 {[%clk 0:02:57.6]} 6... Nf6 {[%clk
0:02:52.6]} 7. Nc3 {[%clk 0:02:56.1]} 7... Be7 {[%clk 0:02:52.4]} 8. Bg5 {[%clk
0:02:55]} 8... O-O {[%clk 0:02:52.3]} 9. O-O-O {[%clk 0:02:55]} 9... Bg4 {[%clk
0:02:49.1]} 10. Qf4 {[%clk 0:02:48.6]} 10... Bxd1 {[%clk 0:02:49.3]} 11. Kxd1
{[%clk 0:02:49]} 11... Nh5 {[%clk 0:02:45.6]} 12. Bxe7 {[%clk 0:02:47.2]} 12...
Nxf4 {[%clk 0:02:44]} 13. Bxd8 {[%clk 0:02:47.6]} 13... Raxd8 {[%clk 0:02:44.5]}
14. g3 {[%clk 0:02:45.3]} 14... Ng6 {[%clk 0:02:44.1]} 15. Bc4 {[%clk
0:02:44.5]} 15... c6 {[%clk 0:02:44.3]} 16. Rf1 {[%clk 0:02:42.4]} 16... b5
{[%clk 0:02:44.3]} 17. Bb3 {[%clk 0:02:42.3]} 17... a5 {[%clk 0:02:44.8]} 18. a4
{[%clk 0:02:42.7]} 18... b4 {[%clk 0:02:45.4]} 19. Ne2 {[%clk 0:02:43.2]} 19...
Rde8 {[%clk 0:02:31]} 20. d5 {[%clk 0:02:15.2]} 20... c5 {[%clk 0:02:25.6]} 0-1

[Event "Late-Titled-Tuesday-Blitz-May-28-2024"]
[Site "Chess.com"]
[Date "2024.05.28"]
[Round "3"]
[White "Lion_DL"]
[Black "MatthewG-p4p"]
[Result "0-1"]
[WhiteElo "2515"]
[BlackElo "2843"]
[TimeControl "180+1"]
[EndTime "14:24:06 PDT"]
[Termination "MatthewG-p4p won by resignation"]

1. d4 {[%clk 0:03:00.9]} 1... Nf6 {[%clk 0:02:59.4]} 2. c4 {[%clk 0:03:01]} 2...
c5 {[%clk 0:02:57.7]} 3. d5 {[%clk 0:03:00.9]} 3... e6 {[%clk 0:02:55.8]} 4. Nc3
{[%clk 0:03:00.5]} 4... exd5 {[%clk 0:02:56.7]} 5. cxd5 {[%clk 0:03:01]} 5... d6
{[%clk 0:02:57.5]} 6. Nf3 {[%clk 0:03:00.9]} 6... g6 {[%clk 0:02:58.4]} 7. Bf4
{[%clk 0:03:00.9]} 7... Bg7 {[%clk 0:02:59.2]} 8. Qa4+ {[%clk 0:03:00.9]} 8...
Bd7 {[%clk 0:02:59.8]} 9. Qb3 {[%clk 0:03:01.2]} 9... b5 {[%clk 0:03:00.5]} 10.
Nxb5 {[%clk 0:03:00.1]} 10... Bxb5 {[%clk 0:03:01.4]} 11. Qxb5+ {[%clk 0:03:00]}
11... Nbd7 {[%clk 0:03:02.3]} 12. e3 {[%clk 0:02:56.8]} 12... Rb8 {[%clk
0:02:51.1]} 13. Qd3 {[%clk 0:02:50.2]} 13... Rxb2 {[%clk 0:02:43.8]} 14. Be2
{[%clk 0:02:49.5]} 14... Qa5+ {[%clk 0:02:42.4]} 15. Kf1 {[%clk 0:02:44.5]}
15... O-O {[%clk 0:02:38.7]} 16. Bxd6 {[%clk 0:02:40.9]} 16... Re8 {[%clk
0:02:32.6]} 17. g3 {[%clk 0:02:36.7]} 17... Ne4 {[%clk 0:02:29.6]} 18. Kg2
{[%clk 0:02:25.3]} 18... Nxd6 {[%clk 0:02:29.4]} 19. Rab1 {[%clk 0:02:17.1]}
19... c4 {[%clk 0:02:27.3]} 20. Qd1 {[%clk 0:02:11.4]} 20... c3 {[%clk
0:02:25.4]} 0-1

[Event "Late-Titled-Tuesday-Blitz-May-28-2024"]
[Site "Chess.com"]
[Date "2024.05.28"]
[Round "3"]
[White "remyrushbrooke"]
[Black "ChessSwole"]
[Result "0-1"]
[WhiteElo "2273"]
[BlackElo "2683"]
[TimeControl "180+1"]
[EndTime "14:24:34 PDT"]
[Termination "ChessSwole won by resignation"]

1. d4 {[%clk 0:03:00.9]} 1... d5 {[%clk 0:03:00]} 2. Nc3 {[%clk 0:03:00.9]} 2...
Nf6 {[%clk 0:02:59.4]} 3. Bg5 {[%clk 0:03:01.3]} 3... h6 {[%clk 0:02:58.3]} 4.
Bxf6 {[%clk 0:03:00.9]} 4... exf6 {[%clk 0:02:59.2]} 5. e3 {[%clk 0:02:57.5]}
5... c6 {[%clk 0:02:57.5]} 6. Bd3 {[%clk 0:02:55.9]} 6... Bd6 {[%clk 0:02:52.3]}
7. Qf3 {[%clk 0:02:45.2]} 7... g6 {[%clk 0:02:43.1]} 8. h4 {[%clk 0:02:41.9]}
8... h5 {[%clk 0:02:40.2]} 9. e4 {[%clk 0:02:24.9]} 9... O-O {[%clk 0:02:33.4]}
10. exd5 {[%clk 0:02:03.9]} 10... Re8+ {[%clk 0:02:30]} 11. Be4 {[%clk
0:01:36.3]} 11... f5 {[%clk 0:02:23.1]} 12. Nge2 {[%clk 0:01:35.2]} 12... fxe4
{[%clk 0:02:17]} 13. Nxe4 {[%clk 0:01:34.8]} 13... Bf5 {[%clk 0:02:09.5]} 14.
N2g3 {[%clk 0:01:31.8]} 14... Bxg3 {[%clk 0:02:08.8]} 0-1